bitfinex-derivatives/quotes_SOLF0:USTF0_20250911
["timestamp","ask_amount","ask_price","bid_price","bid_amount"]
[1757626949564,9.98534837,226.13,226.04,106.86]
[1757626949864,9.98534837,226.12,226.04,106.86]
[1757626950063,6.57964134,226.11,226.04,106.86]
[1757626950259,6.57964134,226.1,226.04,106.86]
[1757626950464,3.04325102,226.09,226.04,106.86]
[1757626950673,4.92885438,226.17,226.04,106.86]
[1757626950872,9.98623495,226.16,226.04,106.86]
[1757626951172,9.98623495,226.15,226.04,106.86]
[1757626951372,9.98623495,226.14,226.04,106.86]
[1757626951575,9.98623495,226.13,226.04,106.86]
[1757626951771,9.98623495,226.12,226.04,106.86]
[1757626951973,6.5802289,226.11,226.04,106.86]
[1757626952274,6.5802289,226.1,226.04,106.86]
[1757626952464,6.5802289,226.09,226.04,106.86]
[1757626952668,4.92885438,226.17,226.04,106.86]
[1757626952866,9.98762057,226.16,226.04,106.86]
[1757626953168,9.98762057,226.15,226.04,106.86]
[1757626953365,9.98762057,226.14,226.04,106.86]
[1757626953567,9.98762057,226.13,226.04,106.86]
[1757626953766,9.98762057,226.12,226.04,106.86]
[1757626953968,6.5811472,226.11,226.04,106.86]
[1757626954167,6.5811472,226.1,226.04,106.86]
[1757626954373,6.5811472,226.09,226.04,106.86]
[1757626954566,4.92885438,226.17,226.04,106.86]
[1757626954769,9.9896818,226.16,226.04,106.86]
[1757626954975,9.9896818,226.15,226.04,106.86]
[1757626955177,9.9896818,226.14,226.04,106.86]
[1757626955372,9.9896818,226.13,226.04,106.86]
[1757626955576,9.9896818,226.12,226.04,106.86]
[1757626955780,6.58251493,226.11,226.04,106.86]
[1757626955980,6.58251493,226.1,226.04,106.86]
[1757626956274,6.58251493,226.09,226.04,106.86]
[1757626956577,4.92885438,226.17,226.04,106.86]
[1757626956778,9.99268678,226.16,226.04,106.86]
[1757626956978,9.99268678,226.15,226.04,106.86]
[1757626957173,9.99268678,226.14,226.04,106.86]
[1757626957370,9.99268678,226.13,226.04,106.86]
[1757626957573,9.99268678,226.12,226.04,106.86]
[1757626957776,6.58444216,226.11,226.04,106.86]
[1757626957977,6.58444216,226.1,226.04,106.86]
[1757626958275,3.04541689,226.09,226.04,106.86]
[1757626958479,4.92885438,226.17,226.04,106.86]
[1757626958679,9.99214053,226.16,226.04,106.86]
[1757626958880,9.99214053,226.15,226.04,106.86]
[1757626959080,9.99214053,226.14,226.04,106.86]
[1757626959378,4.92885438,226.17,226.04,106.86]
[1757626959379,9.99214053,226.13,226.04,106.86]
[1757626959680,9.99214053,226.12,226.04,106.86]
[1757626959878,6.58394424,226.11,226.04,106.86]
[1757626960181,6.58394424,226.1,226.04,106.86]
[1757626960375,6.58394424,226.09,226.04,106.86]
[1757626960678,4.92885438,226.17,226.04,106.86]
[1757626960878,9.99216769,226.16,226.04,106.86]
[1757626961081,9.99216769,226.15,226.04,106.86]
[1757626961284,6.94678194,226.14,226.04,106.86]
[1757626961486,9.99217936,226.13,226.04,106.86]
[1757626961680,9.99217936,226.12,226.04,106.86]
[1757626961880,6.5839774,226.11,226.04,106.86]
[1757626962081,6.5839774,226.1,226.04,106.86]
[1757626962282,6.5839774,226.09,226.04,106.86]
[1757626962482,4.92885438,226.17,226.04,106.86]
[1757626962683,9.99225318,226.16,226.04,106.86]
[1757626962883,9.99225318,226.15,226.04,106.86]
[1757626963184,9.99225318,226.14,226.04,106.86]
[1757626963384,9.99225318,226.13,226.04,106.86]
[1757626963580,9.99225318,226.12,226.04,106.86]
[1757626963784,6.58402204,226.11,226.04,106.86]
[1757626963977,6.58402204,226.1,226.04,106.86]
[1757626964181,6.58402204,226.09,226.04,106.86]
[1757626964378,4.92885438,226.17,226.04,106.86]
[1757626964582,9.99364658,226.16,226.04,106.86]
[1757626964882,9.99364658,226.15,226.04,106.86]
[1757626965182,9.99364658,226.14,226.04,106.86]
[1757626965382,9.99364658,226.13,226.04,106.86]
[1757626965590,9.99364658,226.12,226.04,106.86]
[1757626965789,6.58537408,226.11,226.04,106.86]
[1757626966086,6.58537408,226.1,226.04,106.86]
[1757626966285,6.58537408,226.09,226.04,106.86]
[1757626966487,4.92885438,226.17,226.04,106.86]
[1757626966688,9.99650912,226.16,226.04,106.86]
[1757626966886,9.99650912,226.15,226.04,106.86]
[1757626967186,4.92885438,226.17,226.04,106.86]
[1757626967187,9.99650912,226.14,226.04,106.86]
[1757626967386,9.99650912,226.13,226.04,106.86]
[1757626967587,9.99653937,226.12,226.04,106.86]
[1757626967886,6.58821468,226.11,226.04,106.86]
[1757626968086,6.58821468,226.1,226.04,106.86]
[1757626968287,6.58821468,226.09,226.04,106.86]
[1757626968488,4.92885438,226.17,226.04,106.86]
[1757626968680,9.99613498,226.16,226.04,106.86]
[1757626968882,9.99613498,226.15,226.04,106.86]
[1757626969079,9.99613498,226.14,226.04,106.86]
[1757626969391,9.99613498,226.13,226.04,106.86]
[1757626969589,6.58793089,226.12,226.04,106.86]
[1757626969791,6.58793089,226.11,226.04,106.86]
[1757626970090,6.58793089,226.1,226.04,106.86]
[1757626970297,3.04664688,226.09,226.04,106.86]
[1757626970590,4.92885438,226.17,226.04,106.86]
[1757626970793,9.99661588,226.16,226.04,106.86]
[1757626970995,9.99661588,226.15,226.04,106.86]
[1757626971290,9.99661588,226.14,226.04,106.86]
[1757626971481,9.99661588,226.13,226.04,106.86]
[1757626971682,9.99661588,226.12,226.04,106.86]
[1757626971882,6.58825377,226.11,226.04,106.86]
[1757626972083,3.04680179,226.1,226.04,106.86]
[1757626972294,3.04680179,226.09,226.04,106.86]
[1757626972491,4.92885438,226.17,226.04,106.86]
[1757626972691,10.00080936,226.16,226.04,106.86]
[1757626972892,10.00080936,226.15,226.04,106.86]
[1757626973093,10.00080936,226.14,225.99,10.79862342]
[1757626973297,10.00080936,226.13,226.0,28.18]
[1757626973496,10.00080936,226.12,226.01,55.02]
[1757626973695,6.58851495,226.11,226.01,55.02]
[1757626973894,6.58851495,226.1,226.01,55.02]
[1757626974099,6.5885113,226.09,225.99,40.27605426]
[1757626974295,6.5885113,226.08,225.99,91.47605426]
[1757626974497,6.5885113,226.07,225.99,91.47605426]
[1757626974686,4.92885438,226.15,225.99,91.47605426]
[1757626974891,9.99910403,226.14,225.99,91.47605426]
[1757626975190,9.99910403,226.13,225.99,91.47605426]
[1757626975391,4.92885438,226.15,225.99,91.47605426]
[1757626975392,9.99910403,226.12,225.99,91.47605426]
[1757626975592,9.99910403,226.11,225.99,91.47605426]
[1757626975790,9.99910403,226.1,225.99,91.47605426]
[1757626975990,6.58706469,226.09,225.99,91.47605426]
[1757626976199,6.58706469,226.08,225.99,91.47605426]
[1757626976400,6.58706469,226.07,225.99,91.47605426]
[1757626976600,4.92885438,226.15,225.99,91.47605426]
[1757626976800,10.01014214,226.14,225.99,91.47605426]
[1757626977000,10.01014214,226.13,225.99,51.2]
[1757626977300,10.01014214,226.12,225.99,51.2]
[1757626977501,10.01014214,226.11,225.99,51.2]
[1757626977801,10.01014214,226.1,225.99,51.2]
[1757626978101,6.59871387,226.09,225.99,51.2]
[1757626978303,6.59871387,226.08,225.99,51.2]
[1757626978600,4.92885438,226.16,225.99,51.2]
[1757626978797,10.03564846,226.15,225.99,51.2]
[1757626978997,10.03564846,226.14,225.99,51.2]
[1757626979194,10.03564846,226.13,225.99,51.2]
[1757626979398,10.03564846,226.12,225.99,51.2]
[1757626979599,10.03564846,226.11,225.99,51.2]
[1757626979796,10.03564846,226.1,225.99,51.2]
[1757626980106,10.03564846,226.1,225.97,16.54496142]
[1757626980107,6.59828064,226.09,225.98,77.58]
[1757626980304,6.59828064,226.08,225.98,77.58]
[1757626980502,4.92885438,226.16,225.98,77.58]
[1757626980705,10.03508151,226.15,225.98,77.58]
[1757626980909,10.03508151,226.14,225.98,77.58]
[1757626981197,10.03508151,226.13,225.98,77.58]
[1757626981406,10.03508151,226.12,225.98,77.58]
[1757626981608,10.03508151,226.11,225.98,77.58]
[1757626981810,6.98940686,226.1,225.98,77.58]
[1757626982006,6.59806254,226.09,225.98,77.58]
[1757626982200,6.59806254,226.08,225.98,77.58]
[1757626982397,4.92885438,226.15,225.98,77.58]
[1757626982398,6.59806254,226.07,225.98,77.58]
[1757626982604,4.92885438,226.15,225.98,77.58]
[1757626982803,10.03507615,226.14,225.98,77.58]
[1757626983011,10.03507615,226.13,225.98,77.58]
[1757626983308,10.03507615,226.12,225.98,77.58]
[1757626983608,10.03507615,226.11,225.98,77.58]
[1757626983804,10.03507615,226.1,225.98,77.58]
[1757626984009,6.59792244,226.09,225.98,77.58]
[1757626984209,6.59792244,226.08,225.98,77.58]
[1757626984406,6.59792244,226.07,225.98,77.58]
[1757626984606,4.92885438,226.15,225.98,77.58]
[1757626984905,10.03443744,226.14,225.98,77.58]
[1757626985104,10.03443744,226.13,225.98,77.58]
[1757626985307,10.03443744,226.12,225.98,77.58]
[1757626985509,10.03443744,226.11,225.98,77.58]
[1757626985707,10.03443744,226.1,225.98,77.58]
[1757626985910,6.59750913,226.09,225.98,77.58]
[1757626986204,6.59750913,226.08,225.98,77.58]
[1757626986506,6.59750913,226.07,225.98,77.58]
[1757626986707,4.92885438,226.15,225.98,77.58]
[1757626986905,10.03405238,226.14,225.98,77.58]
[1757626987106,10.03405238,226.13,225.98,77.58]
[1757626987308,10.03405238,226.12,225.98,77.58]
[1757626987508,10.03405238,226.11,225.98,77.58]
[1757626987707,10.03405238,226.1,225.98,77.58]
[1757626987909,10.03405238,226.09,225.98,77.58]
[1757626988106,6.59726185,226.08,225.98,77.58]
[1757626988305,15.42885438,226.16,225.98,77.58]
[1757626988606,10.13777136,226.15,225.98,77.58]
[1757626988803,10.13777136,226.14,225.98,77.58]
[1757626989004,10.13777136,226.13,225.98,77.58]
[1757626989203,10.13777136,226.12,225.98,77.58]
[1757626989404,10.13777136,226.11,225.98,77.58]
[1757626989709,10.13777136,226.1,225.98,77.58]
[1757626989911,6.59717148,226.09,225.98,77.58]
[1757626990110,6.59717148,226.08,225.98,77.58]
[1757626990307,4.92885438,226.16,225.98,77.58]
[1757626990608,10.13748654,226.15,225.98,77.58]
[1757626990799,10.13748654,226.14,225.98,77.58]
[1757626991003,10.13748654,226.13,225.98,77.58]
[1757626991203,10.13748654,226.12,225.98,77.58]
[1757626991509,10.13748654,226.11,225.98,77.58]
[1757626991713,10.13748654,226.1,225.99,7.21]
[1757626991910,6.59698615,226.09,225.99,7.21]
[1757626992209,6.59698615,226.08,225.99,7.21]
[1757626992406,6.92,226.11,225.99,7.21]
[1757626992606,10.13745584,226.1,225.99,7.21]
[1757626992806,6.59696758,226.09,225.99,7.21]
[1757626993006,6.59696758,226.08,225.99,7.21]
[1757626993208,6.92,226.11,225.99,7.21]
[1757626993410,10.13740422,226.1,225.99,7.21]
[1757626993708,6.59691907,226.09,225.99,7.21]
[1757626993903,6.59691907,226.08,225.99,7.21]
[1757626994104,6.92,226.11,225.99,7.21]
[1757626994309,10.13538917,226.1,225.99,7.21]
[1757626994510,6.59495076,226.09,225.99,7.21]
[1757626994710,6.59495076,226.08,225.99,7.21]
[1757626994911,6.92,226.11,225.99,7.21]
[1757626995112,10.13548053,226.1,225.99,7.21]
[1757626995311,6.59499651,226.09,225.99,7.21]
[1757626995511,6.59499651,226.08,225.99,7.21]
[1757626995708,6.92,226.15,226.01,3.4493648]
[1757626996015,10.14342591,226.14,226.02,7.21]
[1757626996214,6.60294107,226.13,226.02,7.21]
[1757626996410,6.92,226.15,226.02,7.21]
[1757626996711,6.60035057,226.14,226.02,7.21]
[1757626996911,6.60035057,226.13,226.02,7.21]
[1757626997111,6.92,226.15,226.02,7.21]
[1757626997312,6.59976525,226.14,226.02,7.21]
[1757626997503,6.59976525,226.13,226.02,7.21]
[1757626997702,6.92,226.15,226.02,7.21]
[1757626997906,6.5992123,226.14,226.02,7.21]
[1757626998106,6.5992123,226.13,226.02,7.21]
[1757626998306,6.92,226.15,226.02,7.21]
[1757626998517,6.59821463,226.14,226.02,7.21]
[1757626998715,3.04106141,226.13,226.02,7.21]
[1757626998915,58.51760302,226.18,226.02,7.21]
[1757626999115,6.59814857,226.17,226.02,7.21]
[1757626999418,6.59814857,226.16,226.02,7.21]
[1757626999611,6.59814857,226.16,226.0,10.79862342]
[1757626999612,6.92,226.23,226.06,7.21]
[1757626999817,6.59487311,226.22,226.09,7.21]
[1757627000025,6.92,226.26,226.11,7.21]
[1757627000208,6.59067248,226.25,226.11,7.21]
[1757627000415,3.03558865,226.24,226.11,7.21]
[1757627000614,6.92,226.26,226.11,7.21]
[1757627000818,3.03541123,226.25,226.11,7.21]
[1757627001016,6.92,226.26,226.11,7.21]
[1757627004617,6.92,226.33,226.18,7.21]
[1757627004821,6.92,226.33,226.2,7.21]
[1757627005022,6.92,226.33,226.22,7.21]
[1757627005717,6.92,226.42,226.22,7.21]
[1757627005918,3.4493648,226.43,226.22,7.21]
[1757627005919,3.02083431,226.41,226.22,7.21]
[1757627006118,6.92,226.4,226.26,7.21]
[1757627008114,6.92,226.4,226.28,7.39]
[1757627008320,7.53,226.42,226.29,7.39]
[1757627010330,9.73236767,226.42,226.3,2.20236767]
[1757627011014,7.53,226.42,226.31,7.39]
[1757627011215,7.53,226.42,226.32,7.39]
[1757627015033,7.53,226.45,226.34,7.39]
[1757627015730,9.73236767,226.45,226.34,7.39]
[1757627018424,7.53,226.45,226.34,7.39]
[1757627018621,7.53,226.5,226.36,2.20236767]
[1757627018827,7.53,226.5,226.41,7.39]
[1757627019135,7.53,226.5,226.44,7.39]
[1757627020037,7.53,226.56,226.44,7.39]
[1757627021630,0.76849183,226.62,226.42,13.62]
[1757627021631,0.76849183,226.62,226.42,62.0]
[1757627021835,7.53,226.71,226.5,7.39]
[1757627022038,7.53,226.63,226.51,7.39]
[1757627022333,7.53,226.68,226.49,7.39]
[1757627022541,7.53,226.61,226.49,9.59236767]
[1757627022729,7.53,226.61,226.45,7.39]
[1757627022932,7.53,226.61,226.51,7.39]
[1757627026438,13.55226922,226.72,226.41,296.78]
[1757627026439,7.53,226.66,226.59,2.20236767]
[1757627026632,2.20236767,226.76,226.62,2.20236767]
[1757627026839,7.53,226.75,226.62,2.20236767]
[1757627027441,7.53,226.73,226.62,2.20236767]
[1757627027840,7.53,226.73,226.61,7.39]
[1757627028139,7.53,226.73,226.6,7.39]
[1757627028436,2.20236767,226.74,226.6,9.59236767]
[1757627029142,7.53,226.73,226.61,7.39]
[1757627033141,7.53,226.73,226.63,7.39]
[1757627033446,7.53,226.8,226.63,7.39]
[1757627034036,296.78,226.81,226.66,7.39]
[1757627034037,7.53,226.77,226.66,7.39]
[1757627035045,2.20236767,226.75,226.63,7.39]
[1757627035243,7.53,226.74,226.63,7.39]
[1757627040939,7.53,226.74,226.64,2.20236767]
[1757627044650,7.51,226.75,226.63,9.59236767]
[1757627045649,2.20236767,226.76,226.63,9.59236767]
[1757627045850,7.51,226.75,226.63,9.59236767]
[1757627046046,2.20236767,226.76,226.63,9.59236767]
[1757627046446,7.51,226.75,226.63,7.39]
[1757627057369,9.71236767,226.75,226.63,7.39]
[1757627062378,7.51,226.73,226.63,7.39]
[1757627065280,3.30215666,226.72,226.63,7.39]
[1757627065581,7.51,226.73,226.63,7.39]
[1757627065781,3.3021563,226.72,226.63,7.39]
[1757627065977,7.51,226.73,226.63,7.39]
[1757627066283,3.30215666,226.72,226.63,7.39]
[1757627066473,3.30215666,226.71,226.63,7.39]
[1757627066677,7.51,226.73,226.63,7.39]
[1757627066871,3.30585441,226.72,226.63,7.39]
[1757627067071,3.30585441,226.71,226.63,7.39]
[1757627067275,7.51,226.73,226.63,7.39]
[1757627067474,3.30767043,226.72,226.63,7.39]
[1757627067679,3.30767043,226.71,226.63,7.39]
[1757627067879,7.51,226.73,226.63,7.39]
[1757627068075,3.30767061,226.72,226.63,7.39]
[1757627068280,7.51,226.73,226.63,7.39]
[1757627068281,3.30767061,226.71,226.63,7.39]
[1757627068585,3.30767061,226.7,226.63,7.39]
[1757627068783,7.51,226.73,226.63,7.39]
[1757627069082,3.30970976,226.72,226.63,7.39]
[1757627069283,3.30970976,226.71,226.63,7.39]
[1757627069485,3.30970976,226.7,226.63,7.39]
[1757627069682,7.51,226.73,226.63,7.39]
[1757627069875,3.3119283,226.72,226.63,7.39]
[1757627070079,7.51,226.73,226.64,0.03354869]
[1757627070080,0.02892702,226.69,226.64,0.03354869]
[1757627070284,0.02892702,226.69,226.65,6.99]
[1757627070485,0.02892702,226.69,226.64,0.03354869]
[1757627070785,0.02892702,226.69,226.65,6.99]
[1757627071386,0.02892702,226.69,226.64,0.03354869]
[1757627071586,0.02892702,226.69,226.65,6.99]
[1757627071982,0.02892702,226.69,226.64,0.03354869]
[1757627072189,0.02892702,226.69,226.65,6.99]
[1757627072585,0.02892702,226.69,226.64,0.03354869]
[1757627072981,0.02892702,226.69,226.65,6.99]
[1757627073691,0.02892702,226.69,226.64,0.03354869]
[1757627074788,0.02892702,226.69,226.65,6.99]
[1757627075585,0.02892702,226.69,226.64,0.03354869]
[1757627076188,0.02892702,226.69,226.65,6.99]
[1757627076693,0.02892702,226.69,226.64,0.03354869]
[1757627076890,0.02892702,226.69,226.65,6.99]
[1757627077491,0.02892702,226.69,226.64,0.03354869]
[1757627078697,0.02892702,226.69,226.65,6.99]
[1757627078898,0.02892702,226.69,226.64,0.03354869]
[1757627079195,7.60892702,226.69,226.64,0.03354869]
[1757627079394,7.60892702,226.69,226.65,6.99]
[1757627079597,7.60892702,226.69,226.64,0.03354869]
[1757627080093,7.60892702,226.69,226.65,6.99]
[1757627080497,7.60892702,226.69,226.64,0.03354869]
[1757627080794,7.60892702,226.69,226.65,6.99]
[1757627080996,7.60892702,226.69,226.64,0.03354869]
[1757627081192,7.60892702,226.69,226.65,6.99]
[1757627081594,7.58,226.68,226.65,6.99]
[1757627081994,0.02892702,226.69,226.65,6.99]
[1757627082194,7.60892702,226.69,226.64,0.03354869]
[1757627082394,7.60892702,226.69,226.65,6.99]
[1757627083099,0.02892702,226.69,226.65,6.99]
[1757627083396,7.60892702,226.69,226.65,6.99]
[1757627083595,7.58,226.68,226.64,0.03354869]
[1757627083788,0.02892702,226.69,226.64,0.03354869]
[1757627084396,0.02892702,226.69,226.64,7.02354869]
[1757627084796,7.58,226.68,226.65,6.99]
[1757627085598,0.02892702,226.69,226.65,6.99]
[1757627085795,7.58,226.68,226.65,6.99]
[1757627086804,0.02892702,226.69,226.65,6.99]
[1757627087104,7.60892702,226.69,226.64,0.03354869]
[1757627087403,7.60892702,226.69,226.65,6.99]
[1757627088404,0.02892702,226.69,226.65,6.99]
[1757627088601,0.02892702,226.69,226.64,0.03354869]
[1757627089206,0.02892702,226.69,226.65,6.99]
[1757627089599,0.02892702,226.69,226.64,0.03354869]
[1757627090101,0.02892702,226.69,226.65,6.99]
[1757627090297,0.02892702,226.69,226.64,0.03354869]
[1757627090508,0.02892702,226.69,226.65,6.99]
[1757627091304,0.02892702,226.69,226.64,0.03354869]
[1757627091510,0.02892702,226.69,226.65,6.99]
[1757627091707,0.02892702,226.69,226.64,0.03354869]
[1757627091896,0.02892702,226.69,226.65,6.99]
[1757627092304,0.02892702,226.69,226.64,0.03354869]
[1757627093507,7.58,226.68,226.65,6.99]
[1757627093814,7.58,226.68,226.64,0.03354869]
[1757627094113,7.58,226.68,226.65,6.99]
[1757627094311,0.02892702,226.69,226.65,6.99]
[1757627094512,0.02892702,226.69,226.64,0.03354869]
[1757627094708,0.02892702,226.69,226.65,6.99]
[1757627095114,0.02892702,226.69,226.64,0.03354869]
[1757627095506,0.02892702,226.69,226.65,6.99]
[1757627096113,0.02892702,226.69,226.64,0.03354869]
[1757627096315,0.02892702,226.69,226.65,6.99]
[1757627096812,0.02892702,226.69,226.64,0.03354869]
[1757627097607,0.02892702,226.69,226.65,7.54]
[1757627098109,0.02892702,226.69,226.64,0.03354869]
[1757627098515,0.02892702,226.69,226.65,7.54]
[1757627099515,0.02892702,226.69,226.64,0.03354869]
[1757627100016,0.02892702,226.69,226.65,7.54]
[1757627100217,0.02892702,226.69,226.64,0.03354869]
[1757627100713,0.02892702,226.69,226.65,7.54]
[1757627101314,0.02892702,226.69,226.64,0.03354869]
[1757627102315,0.02892702,226.69,226.65,7.54]
[1757627102614,0.02892702,226.69,226.64,0.03354869]
[1757627103014,0.02892702,226.69,226.65,7.54]
[1757627103212,0.02892702,226.69,226.64,0.03354869]
[1757627103413,0.02892702,226.69,226.65,7.54]
[1757627103612,0.02892702,226.69,226.64,0.03354869]
[1757627103816,0.02892702,226.69,226.65,7.54]
[1757627104310,0.02892702,226.69,226.64,0.03354869]
[1757627104507,0.02892702,226.69,226.65,7.54]
[1757627104909,0.02892702,226.69,226.64,0.03354869]
[1757627105217,0.02892702,226.69,226.65,7.54]
[1757627105418,0.02892702,226.69,226.64,0.03354869]
[1757627106114,0.02892702,226.69,226.65,7.54]
[1757627106321,0.02892702,226.69,226.64,0.03354869]
[1757627106915,0.02892702,226.69,226.65,7.54]
[1757627112222,0.02892702,226.69,226.67,7.54]
[1757627112421,0.00045767,226.69,226.68,10.97189572]
[1757627115117,6.99,226.76,226.68,3.43189572]
[1757627115324,6.99,226.76,226.69,7.54]
[1757627116018,3.02777422,226.75,226.69,7.54]
[1757627116327,6.99,226.76,226.69,7.54]
[1757627116525,6.99,226.76,226.7,0.03320241]
[1757627116825,6.99,226.74,226.71,7.54]
[1757627118126,11.91885438,226.83,226.71,7.54]
[1757627118327,6.99,226.81,226.71,7.54]
[1757627118520,6.99,226.79,226.71,7.54]
[1757627118720,3.02607729,226.78,226.74,0.0335642]
[1757627118916,3.02607729,226.77,226.75,7.54]
[1757627119126,6.99,226.76,226.74,0.0335642]
[1757627119326,4.92885438,226.85,226.69,7.54]
[1757627119525,10.01505826,226.84,226.73,0.03085824]
[1757627119722,6.99,226.82,226.73,0.03085824]
[1757627119922,3.02505826,226.83,226.73,0.03085824]
[1757627119923,6.99,226.8,226.73,0.03085824]
[1757627120226,10.01505826,226.79,226.73,0.03085824]
[1757627120426,6.99,226.77,226.74,7.54]
[1757627121016,6.99,226.85,226.74,7.54]
[1757627121218,6.99,226.83,226.74,7.54]
[1757627121416,6.99,226.81,226.74,7.54]
[1757627121621,3.02433227,226.8,226.76,0.03234734]
[1757627121821,4.92885438,226.89,226.76,0.03234734]
[1757627122023,10.01329133,226.88,226.76,0.03234734]
[1757627122232,6.99,226.86,226.74,7.54]
[1757627122427,3.02329133,226.85,226.8,0.03286132]
[1757627122628,3.02329133,226.84,226.8,0.03286132]
[1757627122928,6.99,226.82,226.8,0.03286132]
[1757627123326,6.99,226.9,226.8,7.57286132]
[1757627123626,6.99,226.88,226.8,7.57286132]
[1757627123826,6.99,226.86,226.8,7.57286132]
[1757627124028,10.01060235,226.85,226.81,7.54]
[1757627124328,6.99,226.85,226.8,0.03286132]
[1757627124529,6.99,226.94,226.81,7.54]
[1757627124727,6.99,226.92,226.81,7.54]
[1757627124928,6.99,226.9,226.81,7.54]
[1757627125129,3.01866378,226.89,226.84,0.03140202]
[1757627125328,6.99,226.97,226.84,0.03140202]
[1757627125524,6.99,226.95,226.84,0.03140202]
[1757627125724,3.01622815,226.94,226.85,7.54]
[1757627125930,10.00622815,226.93,226.85,7.54]
[1757627126130,6.99,226.93,226.87,0.03393622]
[1757627126524,6.99,227.01,226.88,7.54]
[1757627126722,6.99,226.99,226.88,7.54]
[1757627126929,6.99,226.97,226.88,7.54]
[1757627127130,6.99,226.97,226.91,0.03055764]
[1757627130634,7.57,227.05,226.92,6.98]
[1757627130834,7.57,227.03,226.92,6.98]
[1757627131347,7.57,227.03,226.95,0.03294407]
[1757627132336,7.57,227.01,226.95,0.03294407]
[1757627142550,7.57,226.98,226.95,0.03294407]
[1757627143254,116.35,226.98,226.95,0.03294407]
[1757627143442,2.19103009,226.96,226.95,0.03294407]
[1757627143646,7.57,226.95,226.84,46.76446772]
[1757627143843,2.19103009,226.96,226.84,46.76446772]
[1757627144748,7.57,226.95,226.82,2.19103009]
[1757627144949,7.57,226.92,226.81,9.17103009]
[1757627145651,7.57,226.92,226.81,6.98]
[1757627147347,7.57,226.92,226.75,6.98]
[1757627147554,7.57,226.86,226.75,6.98]
[1757627147752,2.19103009,226.87,226.75,6.98]
[1757627147753,2.19103009,226.84,226.75,6.98]
[1757627147955,7.57,226.83,226.75,6.98]
[1757627149358,7.57,226.83,226.67,8.68]
[1757627149555,7.57,226.8,226.68,6.98]
[1757627150057,7.57,226.77,226.68,6.98]
[1757627153062,7.57,226.77,226.63,2.19103009]
[1757627154668,7.57,226.77,226.64,6.98]
[1757627154866,7.57,226.77,226.66,6.98]
[1757627156776,7.57,226.75,226.66,6.98]
[1757627168982,17.8,226.83,226.66,6.98]
[1757627169182,6.88,226.81,226.69,7.15]
[1757627171584,2.19103009,226.75,226.61,7.15]
[1757627171883,6.88,226.71,226.61,7.15]
[1757627180185,6.88,226.71,226.53,2.19103009]
[1757627180388,6.88,226.67,226.54,7.15]
[1757627182186,9.07103009,226.67,226.54,7.15]
[1757627184194,6.88,226.65,226.54,7.15]
[1757627187293,6.88,226.63,226.54,7.15]
[1757627189090,6.88,226.63,226.5,2.19103009]
[1757627189291,6.88,226.63,226.51,7.19]
[1757627191198,7.03,226.61,226.51,7.19]
[1757627193095,9.22103009,226.64,226.51,7.19]
[1757627193300,9.22103009,226.64,226.47,21.92]
[1757627193301,3.0193538,226.63,226.54,7.19]
[1757627193598,3.0193538,226.62,226.54,7.19]
[1757627193804,7.03,226.64,226.54,7.19]
[1757627194003,3.0191506,226.63,226.54,7.19]
[1757627194294,3.0191506,226.62,226.54,7.19]
[1757627194489,7.03,226.64,226.54,7.19]
[1757627194694,3.01970388,226.63,226.54,7.19]
[1757627194894,3.01970388,226.62,226.54,7.19]